bitfinex/quotes_BTCUSD_20250525
["timestamp","ask_amount","ask_price","bid_price","bid_amount"]
[1748188895819,0.10574556,106770.0,106760.0,0.15156]
[1748188895941,0.10474556,106770.0,106760.0,0.15156]
[1748188896150,0.11124297,106770.0,106760.0,0.14956]
[1748188896353,0.09504297,106770.0,106760.0,0.14956]
[1748188896558,0.09504297,106770.0,106760.0,0.15456]
[1748188896873,0.09504297,106770.0,106760.0,0.1710649]
[1748188896874,0.10370367,106770.0,106760.0,0.1710649]
[1748188897075,0.10370367,106770.0,106760.0,0.1690649]
[1748188897411,0.10470367,106770.0,106760.0,0.1530649]
[1748188897619,0.12090367,106770.0,106760.0,0.0005049]
[1748188897776,0.12090367,106770.0,106760.0,0.1500649]
[1748188897978,0.13590367,106770.0,106760.0,0.0005049]
[1748188898179,1.19492347,106770.0,106760.0,0.0005049]
[1748188898414,1.20295547,106770.0,106760.0,0.0005049]
[1748188898560,1.19359016,106770.0,106760.0,0.0005049]
[1748188898764,0.49330115,106770.0,106760.0,0.0005049]
[1748188898984,0.50166637,106770.0,106760.0,0.0005049]
[1748188899558,0.52188123,106770.0,106760.0,0.0005049]
[1748188899770,0.51451583,106770.0,106760.0,0.0015049]
[1748188899973,0.52388123,106770.0,106760.0,0.0015049]
[1748188900194,0.72993116,106770.0,106760.0,0.0015049]
[1748188900391,0.71253368,106770.0,106760.0,0.0015049]
[1748188900590,0.70368422,106770.0,106760.0,0.0015049]
[1748188902504,0.72971092,106770.0,106760.0,0.0015049]
[1748188903141,0.51636561,106770.0,106760.0,0.0015049]
[1748188903518,0.55175305,106770.0,106760.0,0.0015049]
[1748188903720,0.53302147,106770.0,106760.0,0.0015049]
[1748188903924,0.5142905,106770.0,106760.0,0.0015049]
[1748188904090,0.49199977,106770.0,106760.0,0.0015049]
[1748188904290,0.51756552,106770.0,106760.0,0.0015049]
[1748188904503,0.52693144,106770.0,106760.0,0.0015049]
[1748188904931,0.51756552,106770.0,106760.0,0.0015049]
[1748188905133,0.70488405,106770.0,106760.0,0.0015049]
[1748188905346,0.71865879,106770.0,106740.0,0.20204239]
[1748188905589,0.74466934,106770.0,106740.0,0.20219357]
[1748188905795,0.00936636,106760.0,106740.0,0.20219357]
[1748188906088,0.09891245,106750.0,106740.0,0.17327118]
[1748188906290,1.41722293,106750.0,106740.0,0.00015118]
[1748188906524,1.44322199,106750.0,106740.0,0.00215118]
[1748188906714,1.39322199,106750.0,106740.0,0.00315118]
[1748188906917,1.39322199,106750.0,106740.0,0.00215118]
[1748188907122,1.40188269,106750.0,106740.0,0.00215118]
[1748188907355,0.05940426,106740.0,106720.0,0.1510304]
[1748188907560,0.08954556,106730.0,106720.0,0.1510304]
[1748188907774,0.10534556,106730.0,106720.0,0.0014304]
[1748188907980,0.12408293,106730.0,106720.0,0.0014304]
[1748188908154,0.12308293,106730.0,106720.0,0.0014304]
[1748188908364,0.1137142,106730.0,106720.0,0.0014304]
[1748188908507,0.1292142,106730.0,106720.0,0.0014304]
[1748188908714,0.13858293,106730.0,106720.0,0.0014304]
[1748188908933,0.14058293,106730.0,106720.0,0.0024304]
[1748188909355,0.1322142,106730.0,106720.0,0.0024304]
[1748188909607,0.14158302,106730.0,106720.0,0.0024304]
[1748188909971,0.15095201,106730.0,106720.0,0.0024304]
[1748188910518,0.15095193,106730.0,106720.0,0.0024304]
[1748188910918,0.16272327,106730.0,106720.0,0.0024304]
[1748188911194,0.14398554,106730.0,106720.0,0.0024304]
[1748188911405,0.13785427,106730.0,106720.0,0.0024304]
[1748188911596,0.14722318,106730.0,106720.0,0.0024304]
[1748188911822,0.10734556,106730.0,106720.0,0.0024304]
[1748188912033,0.09154556,106730.0,106720.0,0.0335304]
[1748188912632,0.003,106730.0,106720.0,0.0335304]
[1748188913532,0.003,106730.0,106720.0,0.03131385]
[1748188915624,0.004,106730.0,106720.0,0.03131385]
[1748188915803,0.11228346,106730.0,106720.0,0.00021385]
[1748188915948,0.13421438,106730.0,106720.0,0.00021385]
[1748188916149,0.12484556,106730.0,106720.0,0.00021385]
[1748188916351,0.13421429,106730.0,106720.0,0.00021385]
[1748188916548,0.12484556,106730.0,106720.0,0.00021385]
[1748188916782,0.13421429,106730.0,106720.0,0.00021385]
[1748188919231,0.12484556,106730.0,106720.0,0.00021385]
[1748188919394,0.13421429,106730.0,106720.0,0.00021385]
[1748188919591,0.34971043,106730.0,106720.0,0.00021385]
[1748188919792,0.33097271,106730.0,106720.0,0.00021385]
[1748188920788,1.34462522,106730.0,106720.0,0.00021385]
[1748188920993,1.34292406,106730.0,106720.0,0.00021385]
[1748188921194,1.34942147,106730.0,106720.0,0.00021385]
[1748188921389,0.50462224,106730.0,106720.0,0.00021385]
[1748188921631,0.13134297,106730.0,106720.0,0.00021385]
[1748188921827,0.14908052,106730.0,106720.0,0.00021385]
[1748188922025,0.14979897,106730.0,106710.0,0.0161]
[1748188922243,0.08954556,106720.0,106710.0,0.0161]
[1748188922713,0.08954556,106720.0,106710.0,0.0311]
[1748188924868,0.09354556,106720.0,106710.0,0.0311]
[1748188925266,0.09354556,106720.0,106710.0,0.03076988]
[1748188925532,0.09554556,106720.0,106710.0,0.03076988]
[1748188925693,0.09554556,106720.0,106710.0,0.01576988]
[1748188925694,0.11428486,106720.0,106710.0,0.01576988]
[1748188925930,0.32043256,106720.0,106700.0,0.09337162]
[1748188926131,0.00937049,106710.0,106700.0,0.07807162]
[1748188926329,0.08954556,106710.0,106700.0,0.22775162]
[1748188926761,0.0191617,106720.0,106700.0,0.24305162]
[1748188926987,0.11407678,106720.0,106700.0,0.24305162]
[1748188927209,0.11807678,106720.0,106700.0,0.24305162]
[1748188927447,0.11807678,106720.0,106700.0,0.24320357]
[1748188927665,0.13387678,106720.0,106700.0,0.24320357]
[1748188928330,0.08954556,106710.0,106700.0,0.24400357]
[1748188928549,0.08954556,106710.0,106700.0,0.07822357]
[1748188928774,0.09704297,106710.0,106700.0,0.09432357]
[1748188928994,0.00649741,106710.0,106700.0,0.10962357]
[1748188929474,0.0191617,106720.0,106700.0,0.10962357]
[1748188929691,0.11707696,106720.0,106700.0,0.10962357]
[1748188929915,0.001,106710.0,106700.0,0.10962357]
[1748188930112,0.09054556,106710.0,106700.0,0.07822357]
[1748188930377,0.09354556,106710.0,106700.0,0.22790357]
[1748188930579,0.09354556,106710.0,106700.0,0.24430357]
[1748188930782,0.10004297,106710.0,106700.0,0.24430357]
[1748188931395,0.10004297,106710.0,106700.0,0.26070357]
[1748188931613,0.09904297,106710.0,106700.0,0.26070357]
[1748188932351,0.00949741,106710.0,106700.0,0.26070357]
[1748188932548,0.01049741,106710.0,106700.0,0.26070357]
[1748188933241,0.004,106710.0,106700.0,0.69024913]
[1748188933454,0.004,106710.0,106700.0,5.60439398]
[1748188934066,0.004,106710.0,106700.0,5.5824646]
[1748188934270,0.001,106710.0,106700.0,5.6105366]
[1748188934478,0.001,106710.0,106700.0,5.3831966]
[1748188935096,0.001,106710.0,106700.0,5.3841966]
[1748188938334,0.001,106710.0,106700.0,5.3831966]
[1748188938667,0.001,106710.0,106700.0,5.3871966]
[1748188939079,0.001,106730.0,106720.0,0.031]
[1748188939346,0.001,106730.0,106720.0,4.70560256]
[1748188939523,0.001,106730.0,106720.0,4.75823256]
[1748188939951,0.001,106730.0,106720.0,4.77277341]
[1748188940163,0.08349033,106760.0,106750.0,0.031]
[1748188940370,0.08349033,106760.0,106750.0,0.78298556]
[1748188940371,0.07749033,106760.0,106750.0,0.78298556]
[1748188940578,0.07749033,106760.0,106750.0,2.77497856]
[1748188940794,0.0688118,106760.0,106750.0,0.88397556]
[1748188941010,0.0688118,106760.0,106750.0,0.920102]
[1748188941227,0.0688118,106760.0,106750.0,0.67844]
[1748188941425,0.06896319,106760.0,106750.0,0.67844]
[1748188942881,0.06896319,106760.0,106750.0,0.3224]
[1748188943091,0.00315139,106760.0,106750.0,0.339]
[1748188943294,0.00315139,106760.0,106750.0,0.949839]
[1748188943502,0.00015139,106760.0,106750.0,1.03838456]
[1748188944062,0.00415139,106760.0,106750.0,1.03838456]
[1748188944502,0.00515139,106760.0,106750.0,1.03938456]
[1748188944703,0.00715139,106760.0,106750.0,1.03938456]
[1748188945564,0.00215139,106760.0,106750.0,1.03838456]
[1748188945886,0.00515139,106760.0,106750.0,1.03938456]
[1748188946046,0.00515139,106760.0,106750.0,0.88974456]
[1748188946227,0.00515139,106760.0,106750.0,1.03934456]
[1748188947635,0.00515139,106760.0,106750.0,0.949799]
[1748188949846,0.13546313,106760.0,106750.0,0.001]
[1748188949965,0.20090875,106760.0,106750.0,0.001]
[1748188950624,0.19790875,106760.0,106730.0,0.16774204]
[1748188950811,0.20727493,106760.0,106730.0,0.16774204]
[1748188951019,0.19590875,106760.0,106730.0,0.15194204]
[1748188951216,0.20727476,106760.0,106730.0,0.34234204]
[1748188951425,0.10584556,106750.0,106740.0,0.1496]
[1748188951623,0.12224556,106750.0,106740.0,0.1496]
[1748188952058,0.12224556,106750.0,106720.0,0.0314]
[1748188952262,0.12224556,106750.0,106740.0,0.1496]
[1748188952821,0.12524556,106750.0,106740.0,0.1506]
[1748188953275,0.12524556,106750.0,106740.0,0.001]
[1748188953435,0.12524556,106750.0,106740.0,0.1506]
[1748188957321,0.12524556,106750.0,106740.0,0.001]
[1748188958397,0.09254556,106750.0,106740.0,0.001]
[1748188958604,0.003,106750.0,106740.0,0.001]
[1748188958779,0.003,106750.0,106740.0,0.017]
[1748188959015,0.003,106750.0,106740.0,0.001]
[1748188959458,0.003,106750.0,106740.0,0.017]
[1748188960320,0.003,106750.0,106740.0,0.375642]
[1748188960535,0.003,106750.0,106740.0,1.655018]
[1748188962466,0.003,106750.0,106740.0,0.624476]
[1748188962695,0.003,106750.0,106740.0,0.001]
[1748188962910,0.0342,106750.0,106740.0,0.001]
[1748188963122,0.12374556,106750.0,106740.0,0.001]
[1748188964147,0.13241907,106750.0,106740.0,0.001]
[1748188967731,0.10121907,106750.0,106740.0,0.001]
[1748188969228,0.13201907,106750.0,106740.0,0.001]
[1748188976950,0.14138596,106750.0,106740.0,0.001]
[1748188977165,0.15075311,106750.0,106740.0,0.001]
[1748188977354,0.15075302,106750.0,106740.0,0.234162]
[1748188977922,0.15725642,106750.0,106740.0,0.234162]
[1748188978167,0.15725642,106750.0,106740.0,0.233162]
[1748188978168,0.13552247,106750.0,106740.0,0.233162]
[1748188978627,1.16503477,106750.0,106740.0,0.233162]
[1748188979028,1.17440227,106750.0,106740.0,0.233162]
[1748188979632,1.18328014,106750.0,106740.0,0.233162]
[1748188979846,1.19464782,106750.0,106740.0,0.233162]
[1748188980067,1.18528014,106750.0,106740.0,0.233162]
[1748188980878,1.18528014,106750.0,106740.0,0.21123868]
[1748188981032,1.37263376,106750.0,106740.0,0.21123868]
[1748188981225,1.17591264,106750.0,106740.0,0.21123868]
[1748188981421,1.18528014,106750.0,106740.0,0.21123868]
[1748188981724,1.19464773,106750.0,106740.0,0.21073868]
[1748188982353,1.37263429,106750.0,106740.0,0.21073868]
[1748188982573,1.50353955,106750.0,106740.0,0.21073868]
[1748188982745,1.15717781,106750.0,106740.0,0.21073868]
[1748188982948,0.6775092,106750.0,106740.0,0.21073868]
[1748188983257,0.7182654,106750.0,106740.0,0.21073868]
[1748188983447,0.74174464,106750.0,106740.0,0.21073868]
[1748188983651,0.59010455,106750.0,106740.0,0.21073868]
[1748188983903,0.78582576,106750.0,106740.0,0.21073868]
[1748188984105,1.48690906,106750.0,106740.0,0.21073868]
[1748188984263,1.49090977,106750.0,106740.0,0.21073868]
[1748188985223,1.29418847,106750.0,106740.0,0.21073868]
[1748188985425,1.29418838,106750.0,106740.0,0.21073868]
[1748188985651,1.30355597,106750.0,106740.0,0.21073868]
[1748188986451,1.49091012,106750.0,106740.0,0.21073868]
[1748188987247,1.3035565,106750.0,106740.0,0.21073868]
[1748188987651,0.18483578,106750.0,106740.0,0.21073868]
[1748188988042,0.88591908,106750.0,106740.0,0.21073868]
[1748188988459,0.89314121,106750.0,106740.0,0.21073868]
[1748188988860,0.87704121,106750.0,106740.0,0.21073868]
[1748188990152,0.87704121,106750.0,106740.0,0.22643868]
[1748188990402,0.17595791,106750.0,106740.0,0.22643868]
[1748188991021,0.87053781,106750.0,106740.0,0.21073868]
[1748188991427,0.87704121,106750.0,106740.0,0.21073868]
[1748188991631,0.89354121,106750.0,106740.0,0.21073868]
[1748188992010,0.90974121,106750.0,106740.0,0.21073868]
[1748188992868,0.84550577,106750.0,106740.0,0.21073868]
[1748188993826,0.82930577,106750.0,106740.0,0.21073868]
[1748188994059,0.81280577,106750.0,106740.0,0.21073868]
[1748188994249,0.11172247,106750.0,106740.0,0.22593868]
[1748188995182,0.11172247,106750.0,106740.0,0.75925768]
[1748188995431,0.02217691,106750.0,106740.0,0.75925768]
[1748188995569,0.02217691,106750.0,106740.0,1.09925768]
[1748188995769,0.0135034,106750.0,106740.0,1.09925768]
[1748188995970,0.0135034,106750.0,106740.0,1.18880324]
[1748188996220,0.03984683,106750.0,106740.0,1.19986459]
[1748188996755,0.03684683,106750.0,106740.0,1.19986459]
[1748188996957,0.12239239,106750.0,106740.0,0.59330003]
[1748188997164,0.03284683,106750.0,106740.0,0.74294003]
[1748188997399,0.03384683,106750.0,106740.0,0.74294003]
[1748188999373,0.001,106750.0,106740.0,0.74294003]
[1748189002230,0.001,106750.0,106740.0,0.58223868]
[1748189002412,0.001,106750.0,106740.0,0.73187868]
[1748189002622,0.09054556,106750.0,106740.0,0.36037868]
[1748189003505,0.09054556,106750.0,106740.0,0.21073868]
[1748189003711,0.09054556,106750.0,106740.0,0.36037868]
[1748189006404,0.10684556,106750.0,106740.0,0.36037868]
[1748189008150,0.11552545,106750.0,106740.0,0.21073868]
[1748189008351,0.1269421,106750.0,106740.0,0.21073868]
[1748189009303,0.1426421,106750.0,106740.0,0.21073868]
[1748189009661,0.16137614,106750.0,106740.0,0.21073868]
[1748189009840,0.17074338,106750.0,106740.0,0.21073868]
[1748189010047,0.3674652,106750.0,106740.0,0.21073868]
[1748189010245,0.83761956,106750.0,106740.0,0.21073868]
[1748189010453,0.75460145,106750.0,106740.0,0.21073868]
[1748189010850,0.78064043,106750.0,106740.0,0.21073868]
[1748189011049,0.77186585,106750.0,106740.0,0.21073868]
[1748189011250,0.77096054,106750.0,106740.0,0.21073868]
[1748189011450,2.24960591,106750.0,106740.0,0.21073868]
[1748189011651,2.22477076,106750.0,106740.0,0.21073868]
[1748189012591,2.54177958,106750.0,106740.0,0.21073868]
[1748189012838,2.49877958,106750.0,106740.0,0.21073868]
[1748189013045,1.8878637,106750.0,106740.0,0.21073868]
[1748189013246,2.54141217,106750.0,106740.0,0.21073868]
[1748189013451,2.54941217,106750.0,106740.0,0.21073868]
[1748189015171,2.62346033,106750.0,106740.0,0.21073868]
[1748189015914,2.28346033,106750.0,106740.0,0.18254576]
[1748189016381,2.13382033,106750.0,106740.0,0.18254576]
[1748189016582,0.86390332,106750.0,106740.0,0.18254576]
[1748189016956,0.21552259,106750.0,106740.0,0.18254576]
[1748189017159,0.18409712,106750.0,106740.0,0.19764576]
[1748189017388,0.18617568,106750.0,106740.0,0.19764576]
[1748189017952,0.14352806,106750.0,106740.0,0.19764576]
[1748189018533,0.13485848,106750.0,106740.0,0.19764576]
[1748189018729,0.13485848,106750.0,106740.0,0.18254576]
[1748189018941,0.1535926,106750.0,106740.0,0.18254576]
[1748189019138,0.1699926,106750.0,106740.0,0.18254576]
[1748189019347,0.17582806,106750.0,106740.0,0.18254576]
[1748189019715,0.18519503,106750.0,106740.0,0.16061777]
[1748189019924,0.18519495,106750.0,106740.0,0.16061777]
[1748189020137,0.19456192,106750.0,106740.0,0.16061777]
[1748189020341,0.19272157,106750.0,106740.0,0.16061777]
[1748189020634,0.20208846,106750.0,106740.0,0.16061777]
[1748189021093,0.20200304,106750.0,106740.0,0.16061777]
[1748189021443,0.17623615,106750.0,106740.0,0.16061777]
[1748189021639,0.18560304,106750.0,106740.0,0.16061777]
[1748189021970,0.20200304,106750.0,106740.0,0.16061777]
[1748189022176,0.2113701,106750.0,106740.0,0.16061777]
[1748189022382,0.20200304,106750.0,106740.0,0.16061777]
[1748189022767,0.22727019,106750.0,106740.0,0.16061777]
[1748189022967,0.23663752,106750.0,106740.0,0.16061777]
[1748189023116,0.22727019,106750.0,106740.0,0.16061777]
[1748189023335,0.23663743,106750.0,106740.0,0.16061777]
[1748189023698,0.23663752,106750.0,106740.0,0.16061777]
[1748189023899,0.21790304,106750.0,106740.0,0.16061777]
[1748189024030,0.17623615,106750.0,106740.0,0.16061777]
[1748189025650,0.17623615,106750.0,106740.0,0.19161777]
[1748189026255,0.16756657,106750.0,106740.0,0.19161777]
[1748189027722,0.13616603,106750.0,106740.0,0.19161777]
[1748189027923,0.10337252,106750.0,106740.0,0.19161777]
[1748189030163,0.1120421,106750.0,106740.0,0.19161777]
[1748189031889,0.02266958,106750.0,106740.0,0.19161777]
[1748189032091,0.014,106750.0,106740.0,0.19161777]
[1748189033793,0.014,106750.0,106740.0,0.53161777]
[1748189034049,0.014,106750.0,106740.0,1.29809577]
[1748189034253,0.006,106750.0,106740.0,1.29809577]
[1748189034423,0.00015139,106760.0,106740.0,1.26709577]
[1748189034648,0.00015139,106760.0,106750.0,0.86406161]
[1748189034804,0.00015139,106760.0,106750.0,0.86172]
[1748189035005,0.00015139,106760.0,106750.0,0.35254]
[1748189035215,0.00015139,106760.0,106750.0,0.637575]
[1748189035422,0.00015139,106760.0,106750.0,0.35254]
[1748189035627,0.00015139,106760.0,106750.0,0.476975]
[1748189035797,0.00015139,106760.0,106750.0,0.327335]
[1748189036006,0.00115139,106760.0,106750.0,0.476975]
[1748189036204,0.00415139,106760.0,106750.0,0.35254]
[1748189037078,0.00415139,106760.0,106750.0,0.503193]
[1748189037621,0.00415139,106760.0,106750.0,0.35254]
[1748189038054,0.00415139,106760.0,106750.0,0.834314]
[1748189039524,0.00415139,106760.0,106750.0,1.174314]
[1748189040482,0.00415139,106760.0,106750.0,1.157294]
[1748189041138,0.00415139,106760.0,106750.0,0.472106]
[1748189041333,0.00415139,106760.0,106750.0,0.793706]
[1748189041541,0.00415139,106760.0,106750.0,0.172]
[1748189041542,0.09369695,106760.0,106750.0,0.172]
[1748189041761,0.09369695,106760.0,106740.0,0.17691777]
[1748189041951,0.09369695,106760.0,106750.0,0.1496]
[1748189042171,0.09369695,106760.0,106750.0,0.1659]
[1748189042330,0.00415139,106760.0,106750.0,0.1822]
[1748189043255,0.00315139,106760.0,106750.0,0.1822]
[1748189043448,0.00015139,106760.0,106750.0,0.1822]
[1748189043874,0.00215139,106760.0,106750.0,0.1822]
[1748189044038,0.00315139,106760.0,106750.0,0.1822]
[1748189044462,0.00115139,106760.0,106750.0,0.1822]
[1748189045001,0.00115139,106760.0,106750.0,0.0326]
[1748189045213,0.00115139,106760.0,106750.0,0.1822]
[1748189045540,0.00115139,106760.0,106750.0,0.3379]
[1748189045752,0.00415139,106760.0,106750.0,0.3379]
[1748189046766,0.00415139,106760.0,106750.0,0.1883]
[1748189046965,0.00415139,106760.0,106750.0,0.3379]
[1748189048092,0.00415139,106760.0,106750.0,0.1883]
[1748189048296,0.00415139,106760.0,106750.0,0.3374]
[1748189048598,0.00415139,106760.0,106750.0,0.0158]
[1748189048808,0.09369695,106760.0,106750.0,0.172]
[1748189048984,0.09369695,106760.0,106750.0,0.3216]
[1748189049391,0.09369695,106760.0,106750.0,0.172]
[1748189049590,0.09369695,106760.0,106750.0,0.3216]
[1748189050888,0.00415139,106760.0,106750.0,0.3381]
[1748189052094,0.00415139,106760.0,106750.0,0.3216]
[1748189053028,0.00415139,106760.0,106750.0,2.936237]
[1748189053201,0.00415139,106760.0,106750.0,3.04032341]
[1748189053437,0.00415139,106760.0,106750.0,2.47376641]
[1748189053641,0.00415139,106760.0,106750.0,1.50511341]
[1748189053817,0.00415139,106760.0,106750.0,1.49057256]
[1748189056641,0.00415139,106760.0,106750.0,1.50134272]
[1748189058767,0.00415139,106760.0,106750.0,1.17974272]
[1748189058993,0.00415139,106760.0,106750.0,1.50130272]
[1748189060017,0.00415139,106760.0,106750.0,0.34883016]
[1748189060198,0.00415139,106760.0,106750.0,0.16037016]
[1748189060414,0.00415139,106760.0,106750.0,0.01077016]
[1748189060616,0.00415139,106760.0,106750.0,0.16037016]
[1748189060797,0.00415139,106760.0,106750.0,0.1496]
[1748189064614,0.00415139,106760.0,106750.0,0.15194165]
[1748189065259,0.00415139,106760.0,106750.0,0.1496]
[1748189066097,0.00415139,106760.0,106750.0,0.15194165]
[1748189066505,0.00415139,106760.0,106750.0,0.1496]
[1748189066926,0.00415139,106760.0,106750.0,0.15194165]
[1748189069004,0.00415139,106760.0,106750.0,0.52414165]
[1748189069239,0.00415139,106760.0,106750.0,1.462964]
[1748189069438,0.00415139,106760.0,106750.0,1.55250956]
[1748189072884,0.00415139,106760.0,106750.0,1.17041456]
[1748189078231,0.00415139,106760.0,106750.0,1.18495541]
[1748189078442,1e-08,106760.0,106750.0,1.26065541]
[1748189078646,1e-08,106760.0,106750.0,1.28871141]
[1748189079202,0.04167138,106800.0,106780.0,0.0328]
[1748189079478,0.04217619,106800.0,106790.0,0.15194076]
[1748189079768,0.10811012,106800.0,106790.0,0.15194076]
[1748189080508,0.11111012,106800.0,106790.0,0.15194076]
[1748189080924,0.11411012,106800.0,106790.0,0.1496]
[1748189081117,0.23435568,106800.0,106790.0,0.1496]
[1748189081323,0.0307,106790.0,106780.0,0.17172]
[1748189081455,0.0307,106790.0,106780.0,0.32128]
[1748189082009,0.0297,106790.0,106780.0,0.32128]
[1748189082841,0.0327,106790.0,106780.0,0.32228]
[1748189084110,0.04139362,106790.0,106780.0,0.32228]
[1748189086518,0.04139362,106790.0,106780.0,0.17272]
[1748189087489,0.13093918,106790.0,106780.0,0.001]
[1748189091470,0.11543918,106790.0,106780.0,0.001]
[1748189091689,0.01169362,106790.0,106780.0,0.001]
[1748189091917,0.01169362,106790.0,106780.0,0.0325]
[1748189092983,0.003,106790.0,106780.0,0.0325]
[1748189094872,0.01169837,106790.0,106780.0,0.0325]
[1748189095519,0.01169837,106790.0,106780.0,1.14021]
[1748189096186,0.01169837,106790.0,106780.0,1.48021]
[1748189096391,0.01169837,106790.0,106780.0,1.58429641]
[1748189096942,0.003,106790.0,106780.0,1.58429641]
[1748189098097,0.00050481,106800.0,106790.0,0.371]
[1748189098300,0.00050481,106800.0,106790.0,2.535642]
[1748189099395,0.00050481,106800.0,106790.0,2.536642]
[1748189100065,0.00250481,106800.0,106790.0,2.537642]
[1748189102151,0.00250481,106800.0,106790.0,2.410167]
[1748189104841,0.00250481,106800.0,106790.0,2.260607]
[1748189105062,0.00250481,106800.0,106790.0,2.069542]
[1748189105281,0.00250481,106800.0,106790.0,1.021567]
[1748189105479,0.00250481,106800.0,106790.0,1.010604]
[1748189105682,0.00250481,106800.0,106790.0,0.861044]
[1748189105884,0.00250481,106800.0,106790.0,0.792334]
[1748189107042,0.00250481,106800.0,106790.0,0.3572]
[1748189107245,0.00250481,106800.0,106790.0,0.51336]
[1748189107435,0.00250481,106800.0,106790.0,0.66292]
[1748189108346,0.01770481,106800.0,106790.0,0.32292]
[1748189109801,0.03380481,106800.0,106790.0,0.32292]
[1748189110658,0.04249944,106800.0,106790.0,0.32292]
[1748189112392,0.132045,106800.0,106790.0,0.32292]
[1748189114293,0.132045,106800.0,106790.0,0.17336]
[1748189114556,0.132045,106800.0,106790.0,0.32292]
[1748189114973,0.15077026,106800.0,106790.0,0.002]
[1748189115176,0.132045,106800.0,106790.0,0.002]
[1748189115852,0.130045,106800.0,106790.0,0.001]
[1748189116275,0.0309,106790.0,106780.0,0.14956]
[1748189116395,0.12044556,106790.0,106780.0,0.14956]
[1748189116596,0.12914019,106790.0,106770.0,0.33652]
[1748189116805,0.0309,106780.0,106770.0,0.50788]
[1748189117005,0.0309,106780.0,106770.0,0.65744]
[1748189117208,0.0299,106780.0,106770.0,0.65744]
[1748189117423,0.12814019,106780.0,106770.0,0.17136]
[1748189117626,0.12814019,106780.0,106770.0,0.32092]
[1748189118076,0.13014019,106780.0,106770.0,0.32192]
[1748189118589,0.12814019,106780.0,106770.0,0.32092]
[1748189118803,0.0158,106770.0,106740.0,0.19271777]
[1748189119003,0.10534556,106770.0,106750.0,0.32096]
[1748189119537,0.11404019,106770.0,106750.0,0.32096]
[1748189120356,0.12914019,106770.0,106750.0,0.32096]
[1748189120560,0.13014019,106770.0,106750.0,0.32096]
[1748189121004,0.12914019,106770.0,106750.0,0.32096]
[1748189121406,0.13114019,106770.0,106750.0,0.1724]
[1748189121610,0.13114019,106770.0,106750.0,0.32196]
[1748189122271,0.12244556,106770.0,106750.0,0.32196]
[1748189122556,0.12244556,106770.0,106750.0,0.33816]
[1748189122752,0.12244556,106770.0,106750.0,0.32196]
[1748189123303,0.12244556,106770.0,106750.0,0.1724]
[1748189123503,0.12244556,106770.0,106750.0,0.32196]
[1748189123799,0.13181078,106770.0,106750.0,0.32196]
[1748189124000,0.12244556,106770.0,106750.0,0.32196]
[1748189127049,0.10664556,106770.0,106750.0,0.32196]
[1748189127307,0.09154556,106770.0,106750.0,0.35356]
[1748189127438,0.002,106770.0,106750.0,0.35356]
[1748189128680,0.12254556,106770.0,106750.0,0.32196]
[1748189129722,0.002,106770.0,106750.0,0.35356]
[1748189129920,0.002,106770.0,106760.0,2.09142248]
[1748189130127,0.002,106770.0,106760.0,1.999749]
[1748189130691,0.002,106770.0,106760.0,2.08929456]
[1748189130901,0.04197769,106800.0,106770.0,0.0162]
[1748189131101,0.14722325,106800.0,106780.0,0.15194097]
[1748189131298,0.16252325,106800.0,106780.0,0.1496]
[1748189132132,0.16552325,106800.0,106780.0,0.1496]
[1748189132372,0.16252325,106800.0,106780.0,0.1496]
[1748189132788,0.16752325,106800.0,106780.0,0.1496]
[1748189133269,0.16252325,106800.0,106780.0,0.1496]
[1748189133439,0.86976886,106800.0,106780.0,0.1496]
[1748189133636,0.84097535,106800.0,106780.0,0.1496]
[1748189134196,0.14072974,106800.0,106780.0,0.1496]
[1748189137691,0.14072974,106800.0,106780.0,0.165]
[1748189138090,0.12542974,106800.0,106780.0,0.165]
[1748189138668,0.14072974,106800.0,106780.0,0.165]
[1748189138868,0.12542974,106800.0,106780.0,0.165]
[1748189139581,0.14072974,106800.0,106780.0,0.165]
[1748189139806,0.14072974,106800.0,106780.0,0.1496]
[1748189141028,0.12194556,106790.0,106770.0,0.0154]
[1748189141209,0.12194556,106790.0,106780.0,0.14956]
[1748189141419,0.11432493,106790.0,106780.0,0.14956]
[1748189141711,0.09822493,106790.0,106780.0,0.14956]
[1748189143013,0.10322493,106790.0,106780.0,0.14956]
[1748189143352,0.10222493,106790.0,106780.0,0.14956]
[1748189143847,0.10922493,106790.0,106780.0,0.14956]
[1748189146416,0.10922493,106790.0,106770.0,0.0317]
[1748189146602,0.10922493,106790.0,106780.0,0.14956]
[1748189147294,0.10222493,106790.0,106780.0,0.14956]
[1748189147765,0.10722493,106790.0,106780.0,0.14956]
[1748189148192,0.10222493,106790.0,106780.0,0.14956]
[1748189149505,0.10922493,106790.0,106780.0,0.14956]
[1748189150365,0.10922493,106790.0,106770.0,0.20274]
[1748189150613,0.85043392,106790.0,106770.0,0.17104]
[1748189150875,0.84107054,106790.0,106770.0,0.3206]
[1748189151405,0.10922493,106790.0,106770.0,0.351]
[1748189151839,0.01267937,106790.0,106780.0,0.0304]
[1748189152692,0.00867937,106790.0,106780.0,0.0304]
[1748189152999,0.01367937,106790.0,106780.0,0.0304]
[1748189153167,0.01667937,106790.0,106780.0,0.0304]
[1748189153349,0.01367937,106790.0,106780.0,0.0304]
[1748189153548,0.00867937,106790.0,106780.0,0.0304]
[1748189153775,0.01967937,106790.0,106780.0,0.0304]
[1748189156607,0.01967937,106790.0,106780.0,0.16466]
[1748189156908,0.01967937,106790.0,106780.0,0.14956]
[1748189158419,0.14082493,106790.0,106770.0,0.48956]
[1748189159152,0.14082493,106790.0,106770.0,0.50476]
[1748189159342,0.13382493,106790.0,106770.0,0.50476]
[1748189159567,0.12982493,106790.0,106770.0,0.14956]
[1748189159815,0.13482493,106790.0,106770.0,0.15056]
[1748189159990,0.13782493,106790.0,106770.0,0.15056]
[1748189160216,0.14436523,106790.0,106770.0,0.15056]
[1748189160432,0.84461084,106790.0,106770.0,0.15056]
[1748189160814,0.08954556,106780.0,106770.0,0.001]
[1748189160976,0.10554556,106780.0,106770.0,0.15056]
[1748189161176,0.10554556,106780.0,106770.0,0.001]
[1748189161379,0.12134556,106780.0,106770.0,0.15056]
[1748189161792,0.12788586,106780.0,106770.0,0.15056]
[1748189162127,0.13656523,106780.0,106770.0,0.14956]
[1748189162332,0.13656523,106780.0,106760.0,0.17104]
[1748189162537,0.14456523,106780.0,106770.0,0.001]
[1748189163352,0.14592949,106780.0,106760.0,0.3356]
[1748189163558,0.8461751,106780.0,106760.0,0.17204]
[1748189163796,0.84746892,106780.0,106760.0,0.001]
[1748189163974,0.0318,106770.0,106760.0,0.15056]